[Event "Vastgota Open 2023"]
[Site "Skara stadshotell, Jarnvagsgatan 5, Skara, Sweden"]
[Date "2023.02.19"]
[Round "8.11"]
[White "Lindgren, Philip"]
[Black "Bjorkeroth, Johan"]
[Result "0-1"]
[TimeControl "15 minutes + 5 seconds per move from move one (Round 1 - 2) / 30 minutes + 10 seconds per move from move one (Round 3 - 9)"]
[WhiteTitle "IM"]
[WhiteFideId "1713230"]
[BlackFideId "1719106"]
[WhiteElo "2282"]
[BlackElo "2032"]

1. d4 {[%clk 00:30:16]} {[%emt 00:00:03]} Nf6 {[%clk 00:30:17]} {[%emt
00:00:04]} 2. c4 {[%clk 00:30:20]} {[%emt 00:00:06]} e6 {[%clk 00:30:24]}
{[%emt 00:00:03]} 3. Nf3 {[%clk 00:30:22]} {[%emt 00:00:08]} d5 {[%clk
00:30:32]} {[%emt 00:00:02]} 4. g3 {[%clk 00:30:24]} {[%emt 00:00:07]} dxc4
{[%clk 00:30:37]} {[%emt 00:00:06]} 5. Bg2 {[%clk 00:30:29]} {[%emt 00:00:05]}
Bb4+ {[%clk 00:30:44]} {[%emt 00:00:03]} 6. Bd2 {[%clk 00:30:05]} {[%emt
00:00:34]} a5 {[%clk 00:30:52]} {[%emt 00:00:02]} 7. O-O {[%clk 00:27:07]}
{[%emt 00:03:08]} O-O {[%clk 00:28:16]} {[%emt 00:02:46]} 8. Qc2 {[%clk
00:23:22]} {[%emt 00:03:55]} Bxd2 {[%clk 00:27:08]} {[%emt 00:01:18]} 9. Nbxd2
{[%clk 00:23:21]} {[%emt 00:00:12]} b5 {[%clk 00:27:11]} {[%emt 00:00:06]} 10.
e4 {[%clk 00:21:30]} {[%emt 00:02:01]} Nc6 {[%clk 00:24:31]} {[%emt 00:02:50]}
11. e5 {[%clk 00:20:13]} {[%emt 00:01:28]} Nd5 {[%clk 00:22:18]} {[%emt
00:02:22]} 12. a3 {[%clk 00:19:07]} {[%emt 00:01:16]} Ba6 {[%clk 00:18:42]}
{[%emt 00:03:46]} 13. Rfd1 {[%clk 00:18:07]} {[%emt 00:01:11]} Qe7 {[%clk
00:18:00]} {[%emt 00:00:51]} 14. Ne4 {[%clk 00:14:23]} {[%emt 00:03:55]} h6
{[%clk 00:14:52]} {[%emt 00:03:18]} 15. b3 {[%clk 00:12:10]} {[%emt 00:02:22]}
Rab8 {[%clk 00:10:35]} {[%emt 00:04:27]} 16. h4 {[%clk 00:08:58]} {[%emt
00:03:23]} b4 {[%clk 00:07:47]} {[%emt 00:02:58]} 17. bxc4 {[%clk 00:02:00]}
{[%emt 00:07:07]} b3 {[%clk 00:07:55]} {[%emt 00:00:02]} 18. Qd3 {[%clk
00:01:09]} {[%emt 00:01:00]} b2 {[%clk 00:05:31]} {[%emt 00:02:36]} 19. Rab1
{[%clk 00:01:16]} {[%emt 00:00:03]} Nb6 {[%clk 00:04:15]} {[%emt 00:01:24]} 20.
Nfg5 {[%clk 00:00:13]} {[%emt 00:01:14]} hxg5 {[%clk 00:03:38]} {[%emt
00:00:47]} 21. Nxg5 {[%clk 00:00:21]} {[%emt 00:00:02]} g6 {[%clk 00:03:31]}
{[%emt 00:00:17]} 22. Bxc6 {[%clk 00:00:23]} {[%emt 00:00:08]} Bxc4 {[%clk
00:03:21]} {[%emt 00:00:20]} 23. Qf3 {[%clk 00:00:13]} {[%emt 00:00:20]} Bd5
{[%clk 00:02:53]} {[%emt 00:00:39]} 24. Bxd5 {[%clk 00:00:20]} {[%emt
00:00:02]} Nxd5 {[%clk 00:03:01]} {[%emt 00:00:02]} 25. Rd2 {[%clk 00:00:15]}
{[%emt 00:00:15]} c5 {[%clk 00:02:35]} {[%emt 00:00:35]} 0-1

[Event "Vastgota Open 2023"]
[Site "Skara stadshotell, Jarnvagsgatan 5, Skara, Sweden"]
[Date "2023.02.19"]
[Round "8.12"]
[White "Bengtsson, Siv"]
[Black "Poley, Vladimir"]
[Result "0-1"]
[TimeControl "15 minutes + 5 seconds per move from move one (Round 1 - 2) / 30 minutes + 10 seconds per move from move one (Round 3 - 9)"]
[BlackTitle "IM"]
[WhiteFideId "1701673"]
[BlackFideId "13500090"]
[WhiteElo "1969"]
[BlackElo "2270"]

1. e4 {[%clk 00:29:40]} {[%emt 00:00:39]} g6 {[%clk 00:30:15]} {[%emt
00:00:05]} 2. d4 {[%clk 00:29:44]} {[%emt 00:00:05]} Bg7 {[%clk 00:30:19]}
{[%emt 00:00:07]} 3. Bc4 {[%clk 00:29:28]} {[%emt 00:00:27]} c6 {[%clk
00:28:31]} {[%emt 00:01:57]} 4. Bb3 {[%clk 00:29:02]} {[%emt 00:00:35]} d5
{[%clk 00:28:31]} {[%emt 00:00:10]} 5. e5 {[%clk 00:28:43]} {[%emt 00:00:30]}
Nh6 {[%clk 00:28:28]} {[%emt 00:00:14]} 6. Nf3 {[%clk 00:27:24]} {[%emt
00:01:28]} O-O {[%clk 00:28:31]} {[%emt 00:00:07]} 7. O-O {[%clk 00:27:19]}
{[%emt 00:00:15]} Na6 {[%clk 00:28:29]} {[%emt 00:00:12]} 8. c3 {[%clk
00:25:10]} {[%emt 00:02:20]} Nc7 {[%clk 00:28:33]} {[%emt 00:00:05]} 9. Nbd2
{[%clk 00:23:44]} {[%emt 00:01:36]} f6 {[%clk 00:28:37]} {[%emt 00:00:07]} 10.
Qe2 {[%clk 00:21:20]} {[%emt 00:02:34]} Ne6 {[%clk 00:27:53]} {[%emt 00:00:53]}
11. c4 {[%clk 00:18:04]} {[%emt 00:03:26]} Nf5 {[%clk 00:27:37]} {[%emt
00:00:26]} 12. cxd5 {[%clk 00:16:58]} {[%emt 00:01:15]} cxd5 {[%clk 00:27:35]}
{[%emt 00:00:12]} 13. Qb5 {[%clk 00:15:36]} {[%emt 00:01:33]} Nc7 {[%clk
00:23:33]} {[%emt 00:04:12]} 14. Qd3 {[%clk 00:14:30]} {[%emt 00:01:16]} b6
{[%clk 00:23:25]} {[%emt 00:00:18]} 15. Re1 {[%clk 00:14:16]} {[%emt 00:00:24]}
Ba6 {[%clk 00:23:27]} {[%emt 00:00:07]} 16. Qc3 {[%clk 00:13:39]} {[%emt
00:00:48]} Rc8 {[%clk 00:23:00]} {[%emt 00:00:37]} 17. Qb4 {[%clk 00:13:37]}
{[%emt 00:00:12]} e6 {[%clk 00:17:26]} {[%emt 00:05:44]} 18. Nf1 {[%clk
00:12:43]} {[%emt 00:01:04]} fxe5 {[%clk 00:16:16]} {[%emt 00:01:19]} 19. dxe5
{[%clk 00:11:45]} {[%emt 00:01:08]} Bb7 {[%clk 00:13:39]} {[%emt 00:02:47]} 20.
Ng3 {[%clk 00:10:55]} {[%emt 00:01:01]} Na6 {[%clk 00:13:09]} {[%emt 00:00:40]}
21. Qg4 {[%clk 00:10:40]} {[%emt 00:00:24]} Nc5 {[%clk 00:10:37]} {[%emt
00:02:43]} 22. h4 {[%clk 00:08:42]} {[%emt 00:02:09]} Nd3 {[%clk 00:09:24]}
{[%emt 00:01:22]} 23. Bg5 {[%clk 00:07:30]} {[%emt 00:01:21]} Qe8 {[%clk
00:08:51]} {[%emt 00:00:43]} 24. Re2 {[%clk 00:07:22]} {[%emt 00:00:19]} h6
{[%clk 00:08:23]} {[%emt 00:00:38]} 25. Bd2 {[%clk 00:07:22]} {[%emt 00:00:11]}
h5 {[%clk 00:06:16]} {[%emt 00:02:16]} 26. Qh3 {[%clk 00:06:58]} {[%emt
00:00:34]} a5 {[%clk 00:03:44]} {[%emt 00:02:43]} 27. Nxf5 {[%clk 00:05:20]}
{[%emt 00:01:47]} exf5 {[%clk 00:03:20]} {[%emt 00:00:34]} 28. Nd4 {[%clk
00:03:39]} {[%emt 00:01:50]} Nxb2 {[%clk 00:03:16]} {[%emt 00:00:15]} 29. Nf3
{[%clk 00:02:28]} {[%emt 00:01:21]} a4 {[%clk 00:02:21]} {[%emt 00:01:05]} 30.
Rb1 {[%emt 00:00:35]} axb3 {[%clk 00:01:18]} {[%emt 00:01:11]} 31. Rxb2 {[%clk
00:02:13]} {[%emt 00:00:01]} bxa2 {[%clk 00:01:25]} {[%emt 00:00:03]} 32. Rxa2
{[%clk 00:02:19]} {[%emt 00:00:05]} Qb5 {[%clk 00:01:30]} {[%emt 00:00:05]} 33.
Bf4 {[%clk 00:02:09]} {[%emt 00:00:20]} Rc4 {[%clk 00:01:33]} {[%emt 00:00:07]}
34. Qg3 {[%clk 00:02:08]} {[%emt 00:00:12]} Qc6 {[%clk 00:01:39]} {[%emt
00:00:03]} 35. e6 {[%clk 00:02:06]} {[%emt 00:00:13]} Qe8 {[%clk 00:01:33]}
{[%emt 00:00:16]} 36. Ng5 {[%clk 00:01:55]} {[%emt 00:00:20]} d4 {[%clk
00:01:25]} {[%emt 00:00:18]} 37. e7 {[%clk 00:01:41]} {[%emt 00:00:24]} Rf6
{[%clk 00:01:29]} {[%emt 00:00:06]} 38. Be5 {[%clk 00:01:28]} {[%emt 00:00:23]}
Rfc6 {[%clk 00:01:17]} {[%emt 00:00:23]} 39. Bxg7 Kxg7 {[%clk 00:01:26]} 40.
Ne6+ {[%clk 00:01:19]} {[%emt 00:00:26]} Kh7 {[%clk 00:01:26]} {[%emt
00:00:09]} 41. Ng5+ {[%clk 00:01:24]} {[%emt 00:00:06]} Kg8 {[%clk 00:01:29]}
{[%emt 00:00:07]} 42. Qe5 {[%clk 00:01:06]} {[%emt 00:00:28]} d3 {[%clk
00:01:21]} {[%emt 00:00:17]} 43. Re3 {[%clk 00:00:58]} {[%emt 00:00:19]} R4c5
{[%clk 00:01:21]} {[%emt 00:00:11]} 44. Qd4 {[%clk 00:00:53]} {[%emt 00:00:14]}
Rc7 {[%clk 00:01:21]} {[%emt 00:00:10]} 45. Ne6 {[%clk 00:00:49]} {[%emt
00:00:15]} Rc1+ {[%clk 00:01:25]} {[%emt 00:00:05]} 46. Kh2 {[%clk 00:00:57]}
{[%emt 00:00:02]} Rxe7 {[%clk 00:01:34]} {[%emt 00:00:02]} 47. Qf6 {[%clk
00:00:37]} {[%emt 00:00:29]} Qf7 {[%clk 00:01:21]} {[%emt 00:00:24]} 48. Qxf7+
{[%clk 00:00:32]} {[%emt 00:00:14]} Kxf7 {[%clk 00:01:24]} {[%emt 00:00:07]} 49.
Ng5+ {[%clk 00:00:40]} {[%emt 00:00:02]} Kf6 {[%clk 00:01:33]} {[%emt
00:00:01]} 50. Rxd3 {[%clk 00:00:43]} {[%emt 00:00:07]} Rc6 {[%clk 00:01:13]}
{[%emt 00:00:30]} 51. Rb2 {[%clk 00:00:51]} {[%emt 00:00:02]} Ba6 {[%clk
00:01:05]} {[%emt 00:00:18]} 52. Rd8 {[%clk 00:00:36]} {[%emt 00:00:25]} Bc4
{[%clk 00:01:09]} {[%emt 00:00:06]} 53. Rf8+ {[%clk 00:00:27]} {[%emt
00:00:20]} Kg7 {[%clk 00:01:18]} 54. Rb8 {[%clk 00:00:32]} {[%emt 00:00:04]} b5
{[%clk 00:01:26]} {[%emt 00:00:02]} 55. Nf3 {[%clk 00:00:34]} {[%emt 00:00:07]}
Rd6 {[%clk 00:01:30]} {[%emt 00:00:07]} 56. Nd2 {[%clk 00:00:33]} {[%emt
00:00:11]} Bd3 {[%clk 00:01:34]} {[%emt 00:00:07]} 57. Nb3 {[%clk 00:00:29]}
{[%emt 00:00:13]} Re4 {[%clk 00:01:37]} {[%emt 00:00:07]} 58. g3 {[%clk
00:00:21]} {[%emt 00:00:18]} Rb4 {[%clk 00:01:44]} {[%emt 00:00:02]} 59. Rb7+
{[%clk 00:00:18]} {[%emt 00:00:13]} Kf6 {[%clk 00:01:45]} {[%emt 00:00:09]} 0-1

[Event "Vastgota Open 2023"]
[Site "Skara stadshotell, Jarnvagsgatan 5, Skara, Sweden"]
[Date "2023.02.19"]
[Round "9.1"]
[White "Chatalbashev, Boris"]
[Black "Galperin, Platon"]
[Result "1-0"]
[TimeControl "15 minutes + 5 seconds per move from move one (Round 1 - 2) / 30 minutes + 10 seconds per move from move one (Round 3 - 9)"]
[WhiteTitle "GM"]
[BlackTitle "GM"]
[WhiteFideId "2900440"]
[BlackFideId "14165414"]
[WhiteElo "2522"]
[BlackElo "2429"]

1. d4 {[%clk 00:30:18]} {[%emt 00:00:01]} Nf6 {[%clk 00:27:26]} {[%emt
00:02:55]} 2. c4 {[%clk 00:30:26]} {[%emt 00:00:01]} g6 {[%clk 00:27:34]}
{[%emt 00:00:02]} 3. Nc3 {[%clk 00:30:33]} {[%emt 00:00:02]} Bg7 {[%clk
00:27:43]} {[%emt 00:00:02]} 4. e4 {[%clk 00:30:38]} {[%emt 00:00:05]} d6
{[%clk 00:27:51]} {[%emt 00:00:02]} 5. Be2 {[%clk 00:30:19]} {[%emt 00:00:28]}
O-O {[%clk 00:27:58]} {[%emt 00:00:04]} 6. Bg5 {[%clk 00:30:26]} {[%emt
00:00:02]} Na6 {[%clk 00:28:05]} {[%emt 00:00:03]} 7. Qd2 {[%clk 00:29:55]}
{[%emt 00:00:41]} e5 {[%clk 00:28:13]} {[%emt 00:00:03]} 8. d5 {[%clk
00:30:00]} {[%emt 00:00:05]} c6 {[%clk 00:28:20]} {[%emt 00:00:02]} 9. f3
{[%clk 00:27:40]} {[%emt 00:02:31]} cxd5 {[%clk 00:27:43]} {[%emt 00:00:48]} 10.
cxd5 {[%clk 00:27:45]} {[%emt 00:00:04]} Bd7 {[%clk 00:27:51]} {[%emt
00:00:02]} 11. Bxa6 {[%clk 00:26:01]} {[%emt 00:01:54]} bxa6 {[%clk 00:27:59]}
{[%emt 00:00:03]} 12. Nge2 {[%clk 00:26:09]} {[%emt 00:00:01]} a5 {[%clk
00:28:08]} {[%emt 00:00:01]} 13. O-O {[%clk 00:26:01]} {[%emt 00:00:18]} a4
{[%clk 00:27:47]} {[%emt 00:00:31]} 14. Rac1 {[%clk 00:24:54]} {[%emt
00:01:17]} Qa5 {[%clk 00:27:43]} {[%emt 00:00:15]} 15. Rc2 {[%clk 00:24:32]}
{[%emt 00:00:31]} Rfc8 {[%clk 00:27:23]} {[%emt 00:00:30]} 16. Rfc1 {[%clk
00:24:16]} {[%emt 00:00:27]} Rab8 {[%clk 00:23:59]} {[%emt 00:03:33]} 17. g4
{[%clk 00:23:46]} {[%emt 00:00:39]} Ne8 {[%clk 00:19:40]} {[%emt 00:04:30]} 18.
Kg2 {[%clk 00:22:19]} {[%emt 00:01:37]} Nc7 {[%clk 00:18:46]} {[%emt 00:01:04]}
19. Nxa4 {[%clk 00:19:35]} {[%emt 00:02:54]} Qxd2 {[%clk 00:14:45]} {[%emt
00:04:12]} 20. Bxd2 {[%clk 00:19:42]} {[%emt 00:00:02]} Nb5 {[%clk 00:14:39]}
{[%emt 00:00:16]} 21. Rxc8+ {[%clk 00:19:30]} {[%emt 00:00:21]} Bxc8 {[%clk
00:14:48]} {[%emt 00:00:02]} 22. b3 {[%clk 00:15:05]} {[%emt 00:04:35]} f5
{[%clk 00:14:51]} {[%emt 00:00:07]} 23. h3 {[%clk 00:13:56]} {[%emt 00:01:19]}
h5 {[%clk 00:14:46]} {[%emt 00:00:15]} 24. g5 {[%clk 00:11:31]} {[%emt
00:02:34]} fxe4 {[%clk 00:11:53]} {[%emt 00:03:04]} 25. fxe4 {[%clk 00:11:40]}
Ba6 {[%clk 00:11:28]} {[%emt 00:00:36]} 26. Nb2 {[%clk 00:10:55]} {[%emt
00:00:54]} Na3 {[%clk 00:10:12]} {[%emt 00:01:26]} 27. Ng1 {[%clk 00:10:14]}
{[%emt 00:00:51]} Bf8 {[%clk 00:09:35]} {[%emt 00:00:47]} 28. Be3 {[%clk
00:06:23]} {[%emt 00:04:01]} Rb7 {[%clk 00:09:14]} {[%emt 00:00:31]} 29. Nf3
{[%clk 00:06:25]} {[%emt 00:00:07]} Rf7 {[%clk 00:08:59]} {[%emt 00:00:26]} 30.
Nd2 {[%clk 00:05:42]} {[%emt 00:00:53]} Be2 {[%clk 00:08:16]} {[%emt 00:00:53]}
31. Rc8 {[%clk 00:05:03]} {[%emt 00:00:48]} Kg7 {[%clk 00:08:03]} {[%emt
00:00:24]} 32. Bf2 {[%clk 00:03:19]} {[%emt 00:01:55]} Be7 {[%clk 00:02:54]}
{[%emt 00:05:19]} 33. h4 {[%clk 00:03:17]} {[%emt 00:00:11]} a6 {[%clk
00:01:54]} {[%emt 00:01:10]} 34. Nbc4 {[%clk 00:02:44]} {[%emt 00:00:43]} Nc2
{[%clk 00:00:12]} {[%emt 00:01:52]} 35. Nxd6 {[%clk 00:02:09]} {[%emt
00:00:45]} Bxd6 {[%clk 00:00:21]} {[%emt 00:00:01]} 36. Rxc2 {[%clk 00:02:17]}
{[%emt 00:00:02]} Bb4 {[%clk 00:00:30]} {[%emt 00:00:01]} 37. Bg3 {[%clk
00:02:04]} {[%emt 00:00:23]} Bd3 {[%clk 00:00:23]} {[%emt 00:00:16]} 38. Bxe5+
{[%clk 00:02:11]} {[%emt 00:00:04]} Kf8 {[%clk 00:00:11]} {[%emt 00:00:24]} 39.
Rc8+ {[%clk 00:01:57]} {[%emt 00:00:22]} Ke7 {[%clk 00:00:20]} 40. Bc3 {[%clk
00:02:01]} {[%emt 00:00:06]} Kd7 {[%clk 00:00:30]} 41. Rc6 {[%clk 00:01:48]}
{[%emt 00:00:23]} Bb5 {[%clk 00:00:25]} {[%emt 00:00:15]} 42. Bxb4 {[%clk
00:01:48]} {[%emt 00:00:10]} Bxc6 {[%clk 00:00:34]} {[%emt 00:00:01]} 43. dxc6+
{[%clk 00:01:56]} {[%emt 00:00:02]} Kxc6 {[%clk 00:00:43]} {[%emt 00:00:01]} 44.
Kg3 {[%clk 00:01:15]} {[%emt 00:00:51]} Kd7 {[%clk 00:00:52]} {[%emt 00:00:01]}
45. Nf3 {[%clk 00:01:15]} {[%emt 00:00:09]} Ke6 {[%clk 00:01:02]} 46. Bc3
{[%clk 00:01:11]} {[%emt 00:00:14]} Rd7 {[%clk 00:01:00]} {[%emt 00:00:11]} 47.
Nd4+ {[%clk 00:01:10]} {[%emt 00:00:11]} Ke5 {[%clk 00:01:01]} {[%emt
00:00:09]} 48. Kf3 {[%clk 00:01:19]} Rf7+ {[%clk 00:01:04]} {[%emt 00:00:07]}
49. Ke3 {[%clk 00:01:25]} {[%emt 00:00:04]} Rf1 {[%clk 00:01:13]} {[%emt
00:00:01]} 50. Ne2+ {[%clk 00:01:25]} {[%emt 00:00:11]} Ke6 {[%clk 00:01:15]}
{[%emt 00:00:04]} 51. Nf4+ {[%clk 00:01:33]} {[%emt 00:00:05]} Kf7 {[%clk
00:01:24]} 52. e5 {[%clk 00:01:41]} {[%emt 00:00:02]} Rh1 {[%clk 00:01:32]}
{[%emt 00:00:03]} 53. e6+ {[%clk 00:01:49]} {[%emt 00:00:02]} Ke7 {[%clk
00:01:20]} {[%emt 00:00:21]} 54. Bb4+ {[%clk 00:01:58]} {[%emt 00:00:02]} Ke8
{[%clk 00:01:29]} {[%emt 00:00:01]} 55. Nxg6 {[%clk 00:02:04]} {[%emt
00:00:03]} Ra1 {[%clk 00:01:26]} {[%emt 00:00:13]} 56. Nf4 {[%clk 00:02:04]}
{[%emt 00:00:10]} Rh1 {[%clk 00:01:34]} {[%emt 00:00:02]} 57. Nxh5 {[%clk
00:01:52]} {[%emt 00:00:22]} 1-0

[Event "Vastgota Open 2023"]
[Site "Skara stadshotell, Jarnvagsgatan 5, Skara, Sweden"]
[Date "2023.02.19"]
[Round "9.2"]
[White "Seo, Jung Min"]
[Black "Sivuk, Vitaly"]
[Result "0-1"]
[TimeControl "15 minutes + 5 seconds per move from move one (Round 1 - 2) / 30 minutes + 10 seconds per move from move one (Round 3 - 9)"]
[WhiteTitle "IM"]
[BlackTitle "GM"]
[WhiteFideId "1734687"]
[BlackFideId "14116502"]
[WhiteElo "2448"]
[BlackElo "2502"]

1. e4 {[%emt 00:03:03]} c5 {[%clk 00:27:05]} {[%emt 00:00:13]} 2. Nf3 {[%clk
00:30:26]} {[%emt 00:00:02]} d6 {[%clk 00:27:06]} {[%emt 00:00:10]} 3. d4
{[%clk 00:30:23]} {[%emt 00:00:13]} cxd4 {[%clk 00:27:14]} {[%emt 00:00:02]} 4.
Nxd4 {[%clk 00:30:32]} {[%emt 00:00:01]} Nf6 {[%clk 00:27:22]} {[%emt
00:00:01]} 5. Nc3 {[%clk 00:30:41]} a6 {[%clk 00:27:31]} {[%emt 00:00:02]} 6.
Be3 {[%clk 00:30:50]} {[%emt 00:00:01]} e6 {[%clk 00:27:29]} {[%emt 00:00:12]}
7. f3 {[%clk 00:30:21]} {[%emt 00:00:39]} b5 {[%clk 00:27:35]} {[%emt
00:00:04]} 8. Qd2 {[%clk 00:30:06]} {[%emt 00:00:25]} Nbd7 {[%clk 00:27:42]}
{[%emt 00:00:02]} 9. g4 {[%clk 00:30:12]} {[%emt 00:00:04]} h6 {[%clk
00:27:41]} {[%emt 00:00:11]} 10. O-O-O {[%clk 00:30:03]} {[%emt 00:00:20]} b4
{[%clk 00:27:45]} {[%emt 00:00:06]} 11. Nce2 {[%clk 00:29:29]} {[%emt
00:00:44]} Qc7 {[%clk 00:27:52]} {[%emt 00:00:04]} 12. h4 {[%clk 00:29:24]}
{[%emt 00:00:14]} d5 {[%clk 00:27:57]} {[%emt 00:00:04]} 13. Bf4 {[%clk
00:28:05]} {[%emt 00:01:30]} e5 {[%clk 00:28:06]} {[%emt 00:00:01]} 14. Bh2
{[%clk 00:28:14]} {[%emt 00:00:01]} dxe4 {[%clk 00:28:12]} {[%emt 00:00:04]} 15.
g5 {[%clk 00:28:22]} {[%emt 00:00:03]} hxg5 {[%clk 00:28:17]} {[%emt 00:00:04]}
16. hxg5 {[%clk 00:28:31]} Rxh2 {[%clk 00:28:23]} {[%emt 00:00:04]} 17. Rxh2
{[%clk 00:28:41]} exd4 {[%clk 00:28:31]} {[%emt 00:00:03]} 18. Rh8 {[%clk
00:25:20]} {[%emt 00:03:30]} Nd5 {[%clk 00:28:14]} {[%emt 00:00:27]} 19. Qxd4
{[%clk 00:25:23]} {[%emt 00:00:08]} Bb7 {[%clk 00:27:38]} {[%emt 00:00:45]} 20.
fxe4 {[%clk 00:23:37]} {[%emt 00:01:56]} N5b6 {[%clk 00:27:11]} {[%emt
00:00:37]} 21. g6 {[%clk 00:14:46]} {[%emt 00:09:02]} f6 {[%clk 00:22:56]}
{[%emt 00:04:24]} 22. Bh3 {[%clk 00:13:49]} {[%emt 00:01:06]} O-O-O {[%clk
00:23:01]} {[%emt 00:00:06]} 23. Kb1 {[%clk 00:13:13]} {[%emt 00:00:46]} Kb8
{[%clk 00:15:54]} {[%emt 00:07:17]} 24. Bxd7 {[%clk 00:04:09]} {[%emt
00:09:14]} Nxd7 {[%clk 00:16:01]} {[%emt 00:00:02]} 25. Rxf8 {[%clk 00:03:28]}
{[%emt 00:00:52]} Rxf8 {[%clk 00:16:04]} {[%emt 00:00:07]} 26. Qxd7 {[%clk
00:03:37]} Bxe4 {[%clk 00:16:03]} {[%emt 00:00:11]} 27. Qxc7+ {[%clk 00:03:46]}
Kxc7 {[%clk 00:16:12]} {[%emt 00:00:01]} 28. Nf4 {[%clk 00:03:55]} Re8 {[%clk
00:15:57]} {[%emt 00:00:25]} 29. Kc1 {[%clk 00:04:01]} {[%emt 00:00:05]} Re5
{[%clk 00:15:40]} {[%emt 00:00:27]} 30. Rd4 {[%clk 00:04:08]} {[%emt 00:00:04]}
a5 {[%clk 00:15:48]} {[%emt 00:00:01]} 31. c3 {[%clk 00:03:49]} {[%emt
00:00:29]} bxc3 {[%clk 00:15:55]} {[%emt 00:00:03]} 32. bxc3 {[%clk 00:03:54]}
{[%emt 00:00:05]} Kc6 {[%clk 00:15:49]} {[%emt 00:00:15]} 33. a3 {[%clk
00:03:49]} {[%emt 00:00:16]} Bf5 {[%clk 00:14:27]} {[%emt 00:01:31]} 34. Kd2
{[%clk 00:03:48]} {[%emt 00:00:11]} Bd7 {[%clk 00:13:58]} {[%emt 00:00:40]} 35.
Rc4+ {[%clk 00:03:46]} {[%emt 00:00:11]} Kd6 {[%clk 00:10:13]} {[%emt
00:03:56]} 36. Rd4+ {[%clk 00:03:55]} {[%emt 00:00:01]} Kc6 {[%clk 00:10:22]}
37. Rc4+ {[%clk 00:04:03]} {[%emt 00:00:02]} Rc5 {[%clk 00:10:17]} {[%emt
00:00:15]} 38. Re4 {[%clk 00:02:33]} {[%emt 00:01:41]} Kd6 {[%clk 00:07:32]}
{[%emt 00:02:55]} 39. Rd4+ {[%clk 00:02:37]} {[%emt 00:00:05]} Ke7 {[%clk
00:05:37]} {[%emt 00:02:04]} 40. Nd5+ {[%clk 00:02:19]} {[%emt 00:00:28]} Ke8
{[%clk 00:05:46]} {[%emt 00:00:02]} 41. Nf4 {[%clk 00:01:26]} {[%emt 00:01:03]}
Re5 {[%clk 00:04:58]} {[%emt 00:00:58]} 42. c4 {[%clk 00:01:13]} {[%emt
00:00:24]} Bf5 {[%clk 00:04:45]} {[%emt 00:00:22]} 43. Rd5 {[%clk 00:00:13]}
{[%emt 00:01:11]} Ke7 {[%clk 00:04:07]} {[%emt 00:00:48]} 44. Kc3 {[%clk
00:00:15]} {[%emt 00:00:08]} Be4 {[%clk 00:01:45]} {[%emt 00:02:31]} 45. Rd4
{[%clk 00:00:24]} {[%emt 00:00:01]} f5 {[%clk 00:01:42]} {[%emt 00:00:12]} 46.
Nh5 {[%clk 00:00:30]} {[%emt 00:00:05]} Re6 {[%clk 00:01:41]} {[%emt 00:00:10]}
47. Nxg7 {[%clk 00:00:22]} {[%emt 00:00:19]} Rxg6 {[%clk 00:01:50]} {[%emt
00:00:02]} 48. Nxf5+ {[%clk 00:00:24]} {[%emt 00:00:08]} Bxf5 {[%clk 00:01:59]}
{[%emt 00:00:01]} 49. Rd5 {[%clk 00:00:33]} Rg3+ {[%clk 00:02:03]} {[%emt
00:00:05]} 50. Kd4 {[%clk 00:00:38]} {[%emt 00:00:06]} Rg4+ {[%clk 00:01:41]}
{[%emt 00:00:31]} 51. Kc3 {[%clk 00:00:24]} {[%emt 00:00:24]} Be6 {[%clk
00:01:46]} {[%emt 00:00:04]} 52. Rxa5 {[%clk 00:00:34]} {[%emt 00:00:01]} Rxc4+
{[%clk 00:01:55]} 53. Kd3 {[%clk 00:00:43]} {[%emt 00:00:01]} Rh4 {[%clk
00:02:01]} {[%emt 00:00:04]} 54. a4 {[%clk 00:00:47]} {[%emt 00:00:06]} Kd6
{[%clk 00:02:10]} {[%emt 00:00:02]} 55. Ke3 {[%clk 00:00:54]} {[%emt 00:00:03]}
Bd5 {[%clk 00:02:17]} {[%emt 00:00:02]} 56. Ra7 {[%clk 00:00:47]} {[%emt
00:00:17]} Ke5 {[%clk 00:02:23]} {[%emt 00:00:03]} 57. a5 {[%clk 00:00:52]}
{[%emt 00:00:06]} Rh3+ {[%clk 00:02:31]} {[%emt 00:00:02]} 58. Kf2 {[%clk
00:00:48]} {[%emt 00:00:14]} Ra3 {[%clk 00:02:40]} {[%emt 00:00:01]} 59. a6
{[%clk 00:00:42]} {[%emt 00:00:17]} Kf4 {[%clk 00:02:47]} {[%emt 00:00:02]} 60.
Re7 {[%clk 00:00:42]} {[%emt 00:00:10]} Rxa6 {[%clk 00:02:52]} {[%emt
00:00:05]} 61. Re8 {[%clk 00:00:51]} {[%emt 00:00:01]} Be4 {[%clk 00:02:53]}
{[%emt 00:00:08]} 62. Rf8+ {[%emt 00:00:11]} Bf5 {[%clk 00:03:01]} 63. Re8
{[%clk 00:01:02]} {[%emt 00:00:01]} Rh6 {[%clk 00:02:36]} {[%emt 00:00:44]} 64.
Rg8 {[%clk 00:01:05]} {[%emt 00:00:08]} Rh7 {[%clk 00:02:40]} {[%emt 00:00:06]}
65. Rg1 {[%clk 00:01:04]} {[%emt 00:00:11]} Be4 {[%clk 00:02:46]} {[%emt
00:00:04]} 66. Rg8 {[%clk 00:01:06]} {[%emt 00:00:08]} Rh2+ {[%clk 00:02:53]}
{[%emt 00:00:02]} 67. Kg1 {[%clk 00:01:15]} {[%emt 00:00:01]} Rb2 {[%clk
00:02:46]} {[%emt 00:00:17]} 68. Rf8+ {[%clk 00:01:20]} {[%emt 00:00:05]} Ke3
{[%clk 00:02:55]} {[%emt 00:00:01]} 69. Rf2 {[%clk 00:00:36]} {[%emt 00:00:55]}
Rb1+ {[%clk 00:03:00]} {[%emt 00:00:05]} 70. Rf1 {[%clk 00:00:45]} Rb8 {[%clk
00:03:08]} {[%emt 00:00:01]} 71. Rf6 {[%emt 00:00:19]} Rh8 {[%clk 00:03:06]}
{[%emt 00:00:09]} 0-1